bitfinex-derivatives/quotes_SOLF0:USTF0_20260208
["timestamp","ask_amount","ask_price","bid_price","bid_amount"]
[1770558718168,63.60584482,88.396,88.33,61.11596539]
[1770558718377,54.95292739,88.394,88.33,50.91906539]
[1770558718570,54.95292739,88.392,88.33,50.91906539]
[1770558718771,63.60584482,88.392,88.33,50.91906539]
[1770558718962,54.95292739,88.392,88.33,50.91906539]
[1770558719163,54.95292739,88.39,88.266,50.91906539]
[1770558719373,54.95292739,88.388,88.266,50.91906539]
[1770558719668,54.95292739,88.379,88.303,50.91906539]
[1770558720668,54.95292739,88.374,88.304,10.1999]
[1770558720868,54.95292739,88.374,88.304,61.11896539]
[1770558722268,63.60584482,88.374,88.304,61.11896539]
[1770558722472,54.95292739,88.374,88.304,61.11896539]
[1770558722882,54.95292739,88.374,88.316,50.91906539]
[1770558724178,54.95292739,88.374,88.249,158.7645]
[1770558724179,54.95292739,88.374,88.262,50.91906539]
[1770558724376,54.95292739,88.36,88.295,50.91906539]
[1770558725783,54.95292739,88.358,88.295,50.91906539]
[1770558729281,63.60584482,88.358,88.295,50.91906539]
[1770558729479,54.95292739,88.356,88.295,50.91906539]
[1770558729682,63.60584482,88.356,88.295,50.91906539]
[1770558729875,54.95292739,88.356,88.295,50.91906539]
[1770558730384,63.60584482,88.356,88.295,50.91906539]
[1770558730582,54.95292739,88.356,88.295,50.91906539]
[1770558731082,63.60584482,88.356,88.295,50.91906539]
[1770558731384,54.95292739,88.353,88.295,50.91906539]
[1770558731783,54.95292739,88.351,88.295,50.91906539]
[1770558731982,54.95292739,88.349,88.295,50.91906539]
[1770558732178,54.95292739,88.347,88.295,50.91906539]
[1770558732379,54.95292739,88.345,88.295,50.91906539]
[1770558732580,63.60584482,88.345,88.295,50.91906539]
[1770558732784,54.95292739,88.345,88.295,50.91906539]
[1770558733887,63.60584482,88.345,88.295,50.91906539]
[1770558734181,54.95292739,88.345,88.295,50.91906539]
[1770558734581,63.60584482,88.345,88.295,50.91906539]
[1770558734788,54.95292739,88.345,88.295,50.91906539]
[1770558735193,63.60584482,88.345,88.295,50.91906539]
[1770558735384,54.95292739,88.345,88.295,50.91906539]
[1770558735787,63.60584482,88.345,88.295,50.91906539]
[1770558735983,54.95292739,88.345,88.295,50.91906539]
[1770558739888,52.56672142,88.343,88.295,50.91906539]
[1770558743991,52.56672142,88.339,88.295,50.91906539]
[1770558744385,52.56672142,88.339,88.276,56.84741121]
[1770558744586,52.56672142,88.32,88.276,56.84741121]
[1770558744788,52.56672142,88.32,88.262,56.84741121]
[1770558745790,52.56672142,88.316,88.262,56.84741121]
[1770558746587,52.56672142,88.314,88.262,56.84741121]
[1770558749397,52.56672142,88.314,88.264,56.84741121]
[1770558754391,52.56672142,88.314,88.266,56.84741121]
[1770558754993,52.56672142,88.335,88.269,56.84741121]
[1770558755996,52.56672142,88.335,88.275,56.84741121]
[1770558760514,52.56672142,88.335,88.277,56.84741121]
[1770558761711,52.56672142,88.335,88.28,56.84741121]
[1770558762409,62.76342142,88.333,88.28,56.84741121]
[1770558762604,52.56672142,88.331,88.28,56.84741121]
[1770558762912,52.56672142,88.329,88.28,56.84741121]
[1770558763112,52.56672142,88.327,88.28,56.84741121]
[1770558763315,52.56672142,88.325,88.28,56.84741121]
[1770558763505,52.56672142,88.323,88.28,56.84741121]
[1770558763701,61.21963885,88.322,88.28,56.84741121]
[1770558763900,61.21963885,88.321,88.28,56.84741121]
[1770558764102,8.65291743,88.32,88.28,56.84741121]
[1770558764306,8.65291743,88.319,88.28,56.84741121]
[1770558764510,8.65291743,88.318,88.28,56.84741121]
[1770558764711,8.65291743,88.317,88.28,56.84741121]
[1770558764911,67.73744892,88.333,88.28,56.84741121]
[1770558765211,66.23317107,88.332,88.28,56.84741121]
[1770558765409,66.23317107,88.331,88.28,56.84741121]
[1770558765605,10.1967,88.333,88.28,56.84741121]
[1770558765606,66.23317107,88.33,88.28,56.84741121]
[1770558765811,57.54074892,88.325,88.265,54.49501262]
[1770558766008,57.54074892,88.323,88.265,54.49501262]
[1770558766318,57.54074892,88.321,88.265,54.49501262]
[1770558766518,57.54074892,88.319,88.265,54.49501262]
[1770558766708,10.56824656,88.328,88.265,54.49501262]
[1770558766709,57.54074892,88.317,88.265,54.49501262]
[1770558767016,57.54074892,88.315,88.265,54.49501262]
[1770558767217,57.54074892,88.313,88.265,54.49501262]
[1770558767519,57.54074892,88.311,88.265,54.49501262]
[1770558767815,57.54074892,88.309,88.265,54.49501262]
[1770558768016,8.69431924,88.308,88.265,54.49501262]
[1770558768215,8.69431924,88.307,88.265,54.49501262]
[1770558768417,8.69431924,88.306,88.265,54.49501262]
[1770558768617,8.69431924,88.305,88.265,54.49501262]
[1770558768819,8.69595119,88.321,88.265,54.49501262]
[1770558769118,57.54074892,88.346,88.274,54.49501262]
[1770558770319,10.1953,88.345,88.284,54.49501262]
[1770558772318,10.1953,88.345,88.295,54.49501262]
[1770558772514,10.1942,88.355,88.295,54.49501262]
[1770558773719,10.1942,88.355,88.297,54.49501262]
[1770558775011,67.73494892,88.355,88.297,54.49501262]
[1770558775617,57.54074892,88.355,88.297,54.49501262]
[1770558777625,57.54074892,88.355,88.301,54.49501262]
[1770558778722,57.54074892,88.355,88.303,54.49501262]
[1770558781122,57.54074892,88.353,88.303,54.49501262]
[1770558781423,57.54074892,88.351,88.303,54.49501262]
[1770558781618,57.54074892,88.349,88.303,54.49501262]
[1770558784923,57.54074892,88.356,88.303,54.49501262]
[1770558789030,57.54074892,88.373,88.306,54.49501262]
[1770558789222,57.54074892,88.391,88.306,54.49501262]
[1770558789531,67.72924892,88.404,88.337,54.49501262]
[1770558789929,8.65273826,88.414,88.337,54.49501262]
[1770558790125,437.91448861,88.415,88.357,54.49501262]
[1770558791133,57.54074892,88.414,88.36,54.49501262]
[1770558798542,57.54074892,88.414,88.363,57.27895366]
[1770558799338,57.54074892,88.414,88.365,57.27895366]
[1770558800141,57.54074892,88.414,88.312,158.652]
[1770558800142,57.54074892,88.414,88.367,57.27895366]
[1770558801338,57.54074892,88.414,88.353,10.1943]
[1770558801845,57.54074892,88.414,88.353,57.27895366]
[1770558802838,57.54074892,88.414,88.362,67.47215366]
[1770558803034,57.54074892,88.414,88.362,57.27895366]
[1770558805547,54.12989252,88.411,88.339,67.47475366]
[1770558806649,54.12989252,88.411,88.349,67.47365366]
[1770558807048,54.12989252,88.411,88.349,57.27895366]
[1770558808252,437.91448861,88.415,88.371,57.27895366]
[1770558808750,54.12989252,88.414,88.313,57.27895366]
[1770558809159,54.12989252,88.414,88.359,10.1935]
[1770558809454,54.12989252,88.414,88.359,57.27895366]
[1770558811555,54.12989252,88.414,88.351,10.1945]
[1770558811556,54.12989252,88.431,88.362,57.27895366]
[1770558812357,54.12989252,88.431,88.363,67.47205366]
[1770558815858,54.12989252,88.431,88.363,57.27895366]
[1770558816556,54.12989252,88.426,88.335,57.27895366]
[1770558816758,54.12989252,88.425,88.335,57.27895366]
[1770558817156,54.12989252,88.425,88.351,57.27895366]
[1770558818463,54.12989252,88.425,88.359,57.27895366]
[1770558818953,54.12989252,88.425,88.376,57.27895366]
[1770558820166,435.69601546,88.426,88.376,57.27895366]
[1770558821264,435.69601546,88.426,88.378,57.27895366]
[1770558821662,435.69601546,88.426,88.382,10.1909]
[1770558821858,54.12989252,88.457,88.383,57.27895366]
[1770558822657,54.12989252,88.457,88.386,57.27895366]
[1770558823766,54.12989252,88.457,88.337,34.02]
[1770558823767,54.12989252,88.457,88.394,57.27895366]
[1770558824667,54.12989252,88.457,88.397,57.27895366]
[1770558825770,54.12989252,88.457,88.4,56.80958572]
[1770558827673,54.12989252,88.457,88.402,66.99818572]
[1770558830872,54.12989252,88.457,88.39,10.19]
[1770558831075,58.58046547,88.455,88.39,10.19]
[1770558831474,58.58046547,88.455,88.39,66.99958572]
[1770558832078,58.58046547,88.453,88.39,66.99958572]
[1770558832272,67.0902733,88.453,88.39,66.99958572]
[1770558832474,58.58046547,88.453,88.39,66.99958572]
[1770558832779,58.58046547,88.453,88.405,56.80958572]
[1770558836379,58.58046547,88.453,88.393,56.80958572]
[1770558837777,58.58046547,88.453,88.396,56.80958572]
[1770558841087,58.58046547,88.453,88.399,56.80958572]
[1770558842689,58.58046547,88.453,88.401,56.80958572]
[1770558843288,58.58046547,88.453,88.403,56.80958572]
[1770558845592,58.58046547,88.453,88.404,10.1884]
[1770558845792,58.58046547,88.453,88.405,56.80958572]
[1770558846683,58.58046547,88.453,88.406,10.1882]
[1770558846888,58.58046547,88.453,88.407,56.80958572]
[1770558847793,58.58046547,88.453,88.409,56.80958572]
[1770558848696,58.58046547,88.453,88.411,56.80958572]
[1770558849996,58.58046547,88.453,88.4,56.80958572]
[1770558850586,58.58046547,88.453,88.4,66.99848572]
[1770558852188,58.58046547,88.468,88.41,56.80958572]
[1770558852386,67.0902733,88.467,88.41,56.80958572]
[1770558852590,58.58046547,88.465,88.41,56.80958572]
[1770558853199,58.58046547,88.463,88.41,56.80958572]
[1770558854599,10.1809,88.47,88.41,56.80958572]
[1770558854600,56.2766692,88.461,88.41,56.80958572]
[1770558854989,66.4586692,88.461,88.41,56.80958572]
[1770558855302,54.14647088,88.459,88.41,56.80958572]
[1770558856300,62.65627871,88.459,88.41,56.80958572]
[1770558856501,54.14647088,88.459,88.41,56.80958572]
[1770558856801,62.65627871,88.459,88.41,56.80958572]
[1770558857001,54.14647088,88.459,88.41,56.80958572]
[1770558858101,62.65627871,88.459,88.41,56.80958572]
[1770558858302,54.14647088,88.457,88.41,56.80958572]
[1770558859701,62.65627871,88.457,88.41,56.80958572]
[1770558859902,54.14647088,88.457,88.41,56.80958572]
[1770558860102,54.14647088,88.455,88.41,56.80958572]
[1770558860304,54.14647088,88.454,88.41,56.80958572]
[1770558860604,10.182,88.461,88.41,56.80958572]
[1770558860605,54.14647088,88.452,88.41,56.80958572]
[1770558861305,8.59428136,88.451,88.41,56.80958572]
[1770558861499,54.14647088,88.452,88.41,56.80958572]
[1770558861704,8.59428136,88.451,88.41,56.80958572]
[1770558861999,54.14647088,88.452,88.41,56.80958572]
[1770558862204,8.59766895,88.451,88.41,56.80958572]
[1770558862393,8.59766895,88.45,88.41,56.80958572]
[1770558862597,54.14647088,88.452,88.41,56.80958572]
[1770558862797,8.597886,88.451,88.41,56.80958572]
[1770558862997,8.597886,88.451,88.399,10.1889]
[1770558862998,54.14647088,88.449,88.399,10.1889]
[1770558863199,54.14647088,88.447,88.399,10.1889]
[1770558863506,54.14647088,88.445,88.399,69.78233689]
[1770558863705,62.74435688,88.444,88.399,69.78233689]
[1770558863906,8.597886,88.443,88.399,69.78233689]
[1770558864205,54.14647088,88.444,88.399,69.78233689]
[1770558864206,8.597886,88.442,88.399,69.78233689]
[1770558864403,64.33077088,88.44,88.386,59.59343689]
[1770558864602,54.14647088,88.438,88.386,59.59343689]
[1770558864802,54.14647088,88.436,88.386,59.59343689]
[1770558865007,54.14647088,88.434,88.386,59.59343689]
[1770558865207,54.14647088,88.432,88.386,59.59343689]
[1770558865409,54.14647088,88.452,88.386,59.59343689]
[1770558865606,62.75307264,88.451,88.386,59.59343689]
[1770558865805,8.60660176,88.45,88.386,59.59343689]
[1770558866000,8.60660176,88.449,88.386,59.59343689]
[1770558866308,8.60660176,88.448,88.386,59.59343689]
[1770558866509,8.60660176,88.447,88.386,59.59343689]
[1770558866705,8.60660176,88.447,88.39,59.59343689]
[1770558866910,8.60660176,88.446,88.39,59.59343689]
[1770558867211,8.60660176,88.445,88.39,59.59343689]
[1770558867414,8.60660176,88.444,88.39,59.59343689]
[1770558867710,8.60660176,88.443,88.39,59.59343689]
[1770558867909,8.60660176,88.442,88.39,59.59343689]
[1770558868109,8.60660176,88.441,88.39,59.59343689]
[1770558868303,8.60660176,88.44,88.39,59.59343689]
[1770558868610,8.60660176,88.439,88.39,59.59343689]
[1770558868809,8.60660176,88.438,88.39,59.59343689]
[1770558869005,64.32977088,88.449,88.39,59.59343689]
[1770558869204,62.75518063,88.448,88.39,59.59343689]
[1770558869405,8.60870975,88.447,88.39,59.59343689]
[1770558869601,10.1838,88.445,88.39,59.59343689]
[1770558869806,62.75518063,88.444,88.39,59.59343689]
[1770558870110,62.75518063,88.443,88.39,59.59343689]
[1770558870409,54.14647088,88.44,88.39,59.59343689]
[1770558870598,54.14647088,88.438,88.39,59.59343689]
[1770558870805,62.75518063,88.437,88.39,59.59343689]
[1770558871005,62.75518063,88.436,88.39,59.59343689]
[1770558871204,62.75518063,88.435,88.39,59.59343689]
[1770558871402,54.14647088,88.435,88.39,59.59343689]
[1770558872008,8.6092454,88.434,88.39,59.59343689]
[1770558872313,54.14647088,88.435,88.39,59.59343689]
[1770558872809,62.75552651,88.434,88.39,59.59343689]
[1770558873114,54.14647088,88.432,88.376,59.59343689]
[1770558873314,54.14647088,88.43,88.376,59.59343689]
[1770558873613,54.14647088,88.428,88.376,59.59343689]
[1770558873808,54.14647088,88.426,88.376,59.59343689]
[1770558874015,54.14647088,88.424,88.376,59.59343689]
[1770558874217,54.14647088,88.422,88.376,59.59343689]
[1770558874415,54.14647088,88.42,88.376,59.59343689]
[1770558876219,54.14647088,88.418,88.358,59.59343689]
[1770558876821,54.14647088,88.416,88.358,59.59343689]
[1770558877520,54.14647088,88.414,88.358,59.59343689]
[1770558877718,54.14647088,88.414,88.361,59.59343689]
[1770558878520,54.14647088,88.412,88.361,59.59343689]
[1770558880222,54.14647088,88.41,88.361,59.59343689]
[1770558882017,54.14647088,88.422,88.363,59.59343689]
[1770558883223,54.14647088,88.42,88.363,59.59343689]
[1770558883824,54.14647088,88.418,88.365,59.59343689]
[1770558884027,54.14647088,88.416,88.365,59.59343689]
[1770558884323,62.95732406,88.416,88.365,59.59343689]
[1770558884524,54.14647088,88.416,88.365,59.59343689]
[1770558884724,54.14647088,88.416,88.368,66.3944405]
[1770558885114,59.8159117,88.414,88.368,66.3944405]
[1770558885423,68.62676488,88.414,88.368,66.3944405]
[1770558885618,59.8159117,88.414,88.368,66.3944405]
[1770558889028,59.8159117,88.414,88.377,10.1915]
[1770558890922,59.8159117,88.414,88.377,66.3934405]
[1770558898427,59.8159117,88.425,88.388,66.3921405]
[1770558899738,59.8159117,88.425,88.398,10.189]
[1770558901940,59.8159117,88.423,88.384,10.1907]
[1770558902140,59.8159117,88.423,88.333,56.2019405]
[1770558902340,59.8159117,88.421,88.333,56.2019405]
[1770558902740,59.8159117,88.421,88.383,10.1908]
[1770558904240,8.80085845,88.42,88.383,10.1908]
[1770558904442,59.8159117,88.421,88.383,10.1908]
[1770558904641,8.80556108,88.42,88.38,56.2019405]
[1770558904841,59.8159117,88.421,88.38,56.2019405]
[1770558905041,59.8159117,88.419,88.38,56.2019405]
[1770558905746,59.8159117,88.419,88.289,27.923111]
[1770558905747,8.80555922,88.444,88.4,56.2019405]
[1770558906039,59.8159117,88.45,88.4,56.2019405]
[1770558906245,59.8159117,88.448,88.4,56.2019405]
[1770558906639,59.8159117,88.448,88.405,10.1882]
[1770558907548,59.8159117,88.446,88.4,56.2019405]
[1770558907849,59.8159117,88.444,88.4,56.2019405]
[1770558915756,8.80555922,88.443,88.402,58.22407908]
[1770558915953,8.80555922,88.442,88.402,58.22407908]
[1770558916154,59.8159117,88.444,88.402,58.22407908]
[1770558917751,59.8159117,88.444,88.404,58.22407908]
[1770558921354,8.75312278,88.453,88.404,58.22407908]
[1770558921558,8.75312278,88.452,88.404,58.22407908]
[1770558921857,65.33069928,88.451,88.404,58.22407908]
[1770558922053,8.75312278,88.45,88.406,10.1882]
[1770558922360,56.5775765,88.459,88.407,58.22407908]
[1770558922560,65.32534471,88.458,88.407,58.22407908]
[1770558922858,56.5775765,88.456,88.407,58.22407908]
[1770558923058,56.5775765,88.454,88.41,58.22407908]
[1770558923254,65.32534471,88.454,88.41,58.22407908]
[1770558923451,56.5775765,88.454,88.41,58.22407908]
[1770558925567,6.821e-05,88.458,88.41,58.22407908]
[1770558925755,56.5775765,88.479,88.41,58.22407908]
[1770558926263,56.5775765,88.479,88.424,10.1861]
[1770558926656,56.5775765,88.479,88.424,68.41017908]
[1770558928564,56.5775765,88.494,88.434,58.22407908]
[1770558929062,56.5775765,88.494,88.438,58.22407908]
[1770558929360,56.5775765,88.494,88.427,58.22407908]
[1770558930861,56.5775765,88.494,88.436,58.22407908]
[1770558932763,56.5775765,88.494,88.439,58.22407908]
[1770558933759,56.5775765,88.494,88.447,58.22407908]
[1770558934266,1.96743555,88.515,88.447,58.22407908]
[1770558934267,56.5775765,88.514,88.447,58.22407908]
[1770558935766,56.5775765,88.514,88.453,58.22407908]
[1770558938262,56.5775765,88.514,88.455,58.22407908]
[1770558939869,56.5775765,88.514,88.458,58.22407908]
[1770558942866,56.5775765,88.511,88.458,58.22407908]
[1770558943073,56.5775765,88.511,88.445,58.22407908]
[1770558946176,58.72184375,88.498,88.433,58.68733438]
[1770558947175,58.72184375,88.493,88.419,58.68733438]
[1770558948377,58.72184375,88.491,88.419,58.68733438]
[1770558948671,10.1801,88.476,88.419,58.68733438]
[1770558948876,58.72184375,88.475,88.419,58.68733438]
[1770558950177,58.72184375,88.469,88.407,58.68733438]
[1770558950979,58.72184375,88.466,88.407,58.68733438]
[1770558951178,58.72184375,88.464,88.407,58.68733438]
[1770558951578,58.72184375,88.459,88.407,58.68733438]
[1770558952077,58.72184375,88.459,88.378,58.68733438]
[1770558952475,58.72184375,88.456,88.383,58.68733438]
[1770558953670,58.72184375,88.452,88.383,58.68733438]
[1770558954478,58.72184375,88.449,88.383,58.68733438]
[1770558955577,10.1836,88.446,88.383,58.68733438]
[1770558955777,68.90544375,88.446,88.383,58.68733438]
[1770558959678,10.1836,88.446,88.383,58.68733438]
[1770558960583,58.72184375,88.458,88.383,58.68733438]
[1770558963073,58.72184375,88.458,88.385,58.68733438]
[1770558964682,58.72184375,88.458,88.387,10.1904]
[1770558964983,58.72184375,88.458,88.388,58.68733438]
[1770558965382,58.72184375,88.458,88.341,34.02]
[1770558965383,58.72184375,88.458,88.391,58.68733438]
[1770558966787,58.72184375,88.458,88.397,58.68733438]
[1770558967285,58.72184375,88.456,88.386,58.68733438]
[1770558967484,58.72184375,88.454,88.386,58.68733438]
[1770558967789,58.72184375,88.452,88.386,58.68733438]
[1770558969681,58.72184375,88.452,88.388,68.87753438]
[1770558971184,58.72184375,88.452,88.4,58.68733438]
[1770558974293,14.09070718,88.491,88.4,58.68733438]
[1770558974294,58.34238273,88.472,88.4,58.68733438]
[1770558976595,58.6114539,88.47,88.4,58.68733438]
[1770558977990,58.6114539,88.47,88.402,56.69738271]
[1770558978597,58.6114539,88.468,88.402,56.69738271]
[1770558979786,58.6114539,88.466,88.402,56.69738271]
[1770558980699,58.6114539,88.462,88.402,56.69738271]
[1770558981900,58.6114539,88.458,88.402,56.69738271]
[1770558983096,58.6114539,88.458,88.403,10.1885]
[1770558983400,14.09070718,88.503,88.338,20.3921]
[1770558983401,10.181,88.469,88.404,56.69738271]
[1770558984702,10.181,88.469,88.405,10.1882]
[1770558984896,10.181,88.469,88.406,56.69738271]
[1770558988304,58.6114539,88.478,88.413,56.69738271]
[1770558988495,8.71931441,88.477,88.413,56.69738271]
[1770558988694,10.51710272,88.495,88.413,56.69738271]
[1770558988695,67.33076831,88.476,88.413,56.69738271]
[1770558989005,58.6114539,88.474,88.413,56.69738271]
[1770558989210,58.6114539,88.472,88.413,56.69738271]
[1770558989503,58.6114539,88.47,88.413,56.69738271]
[1770558989707,58.6114539,88.468,88.413,56.69738271]
[1770558989906,58.6114539,88.466,88.413,56.69738271]
[1770558990104,10.51710272,88.474,88.413,56.69738271]
[1770558990105,58.6114539,88.464,88.413,56.69738271]
[1770558990307,58.6114539,88.462,88.413,56.69738271]
[1770558990506,58.6114539,88.46,88.413,56.69738271]
[1770558990707,58.6114539,88.458,88.413,56.69738271]
[1770558990900,58.6114539,88.456,88.413,56.69738271]
[1770558991098,58.6114539,88.454,88.413,56.69738271]
[1770558991300,58.6114539,88.452,88.413,56.69738271]
[1770558991595,8.71931441,88.451,88.413,56.69738271]
[1770558991799,8.71931441,88.45,88.413,56.69738271]
[1770558992000,58.6114539,88.452,88.413,56.69738271]
[1770558992210,8.7319276,88.451,88.413,56.69738271]
[1770558992409,58.6114539,88.449,88.393,56.69738271]
[1770558992709,58.6114539,88.447,88.393,56.69738271]
[1770558992908,58.6114539,88.445,88.393,56.69738271]
[1770558993108,67.3433815,88.444,88.393,56.69738271]
[1770558993308,67.3433815,88.443,88.393,56.69738271]
[1770558993607,67.3433815,88.442,88.393,56.69738271]
[1770558993808,8.7319276,88.441,88.393,56.69738271]
[1770558994108,58.6114539,88.442,88.393,56.69738271]
[1770558994408,8.73461081,88.441,88.393,56.69738271]
[1770558994711,58.6114539,88.442,88.393,56.69738271]
[1770558994904,8.73487098,88.441,88.393,56.69738271]
[1770558995104,58.6114539,88.442,88.393,56.69738271]
[1770558995600,58.6114539,88.442,88.392,10.1898]
[1770558995601,58.6114539,88.457,88.397,56.69738271]
[1770558995806,8.73487098,88.456,88.397,56.69738271]
[1770558996111,8.73487098,88.455,88.397,56.69738271]
[1770558996413,58.6114539,88.457,88.397,56.69738271]
[1770558996601,8.73300476,88.456,88.397,56.69738271]
[1770558996804,8.73477995,88.455,88.399,56.69738271]
[1770558997006,58.6114539,88.457,88.399,56.69738271]
[1770558997215,8.73477995,88.456,88.399,56.69738271]
[1770558997511,58.6114539,88.457,88.399,56.69738271]
[1770558997812,8.73461573,88.456,88.399,56.69738271]
[1770558998013,8.73461573,88.455,88.399,56.69738271]
[1770558998213,58.6114539,88.457,88.399,56.69738271]
[1770558998414,8.73458107,88.456,88.399,56.69738271]
[1770558998617,8.73458107,88.455,88.399,56.69738271]
[1770558998915,58.6114539,88.457,88.399,56.69738271]
[1770558999109,58.6114539,88.455,88.399,56.69738271]
[1770559000010,58.6114539,88.451,88.399,56.69738271]
[1770559000610,58.6114539,88.451,88.403,56.69738271]
[1770559001516,58.6114539,88.475,88.406,56.69738271]
[1770559001812,58.6114539,88.473,88.406,56.69738271]
[1770559002013,58.6114539,88.471,88.406,56.69738271]
[1770559002203,58.6114539,88.469,88.406,56.69738271]
[1770559002410,67.34568973,88.468,88.406,56.69738271]
[1770559002614,67.34568973,88.467,88.406,56.69738271]
[1770559002816,8.73423583,88.466,88.412,56.69738271]
[1770559003015,8.73423583,88.465,88.412,56.69738271]
[1770559003318,8.73423583,88.464,88.412,56.69738271]
[1770559003613,8.73423583,88.463,88.413,10.1873]
[1770559003814,8.73423583,88.462,88.414,56.69738271]
[1770559004015,58.6114539,88.467,88.414,56.69738271]
[1770559004221,8.73367429,88.466,88.414,56.69738271]
[1770559004416,8.73367429,88.465,88.414,56.69738271]
[1770559004716,8.73367429,88.465,88.355,34.02]
[1770559004717,8.73367429,88.464,88.417,56.10688366]
[1770559005015,8.73247206,88.482,88.417,56.10688366]
[1770559005217,8.73247206,88.481,88.417,56.10688366]
[1770559005417,8.73247206,88.48,88.417,56.10688366]
[1770559005618,8.73247206,88.479,88.417,56.10688366]
[1770559005819,8.73247206,88.478,88.428,56.10688366]
[1770559006017,8.73026945,88.477,88.428,56.10688366]
[1770559006314,58.90105335,88.487,88.428,56.10688366]
[1770559006515,67.62988643,88.486,88.428,56.10688366]
[1770559006719,10.51710272,88.47,88.366,34.02]
[1770559006907,58.90105335,88.434,88.297,56.10688366]
[1770559007110,58.90105335,88.417,88.297,56.10688366]
[1770559007408,158.418,88.443,88.297,56.10688366]
[1770559007409,58.90105335,88.401,88.297,56.10688366]
[1770559007715,58.90105335,88.399,88.297,56.10688366]
[1770559008022,58.90105335,88.397,88.3,56.10688366]
[1770559008217,67.62988643,88.397,88.3,56.10688366]
[1770559008412,58.90105335,88.397,88.3,56.10688366]
[1770559008614,58.90105335,88.395,88.304,56.10688366]
[1770559008912,58.90105335,88.393,88.304,56.10688366]
[1770559009113,58.90105335,88.391,88.304,56.10688366]
[1770559009314,58.90105335,88.389,88.304,56.10688366]
[1770559009516,58.90105335,88.387,88.304,56.10688366]
[1770559009820,58.90105335,88.377,88.304,56.10688366]
[1770559014311,58.90105335,88.375,88.279,56.10688366]
[1770559015118,58.90105335,88.35,88.279,56.10688366]
[1770559015309,58.90105335,88.35,88.261,56.10688366]
[1770559015511,58.90105335,88.346,88.261,56.10688366]
[1770559016727,58.90105335,88.346,88.263,56.10688366]
[1770559017316,58.90105335,88.346,88.267,56.10688366]
[1770559017722,10.1925,88.369,88.267,56.10688366]
[1770559018027,58.90105335,88.368,88.284,56.10688366]
[1770559019623,10.1928,88.367,88.285,10.2021]
[1770559019825,58.90105335,88.366,88.286,56.10688366]
[1770559020727,58.90105335,88.382,88.303,56.10688366]
[1770559021721,58.90105335,88.382,88.305,56.10688366]
[1770559022024,58.90105335,88.398,88.305,56.10688366]
[1770559022624,58.90105335,88.398,88.332,56.10688366]
[1770559023823,58.90105335,88.398,88.336,56.10688366]
[1770559027330,58.90105335,88.398,88.34,56.10688366]
[1770559027533,58.90105335,88.416,88.34,56.10688366]
[1770559028236,58.90105335,88.416,88.352,56.10688366]
[1770559029636,58.90105335,88.416,88.358,56.10688366]
[1770559031139,58.90105335,88.416,88.361,56.10688366]
[1770559031533,58.90105335,88.416,88.29,56.0]
[1770559031534,58.90105335,88.444,88.391,66.29678366]
[1770559035041,58.90105335,88.444,88.404,10.1883]
[1770559037844,55.84507065,88.471,88.404,66.47362055]
[1770559038047,55.84507065,88.469,88.404,66.47362055]
[1770559038450,55.84507065,88.469,88.415,66.47242055]
[1770559039847,55.84507065,88.469,88.426,56.28532055]
[1770559040549,55.84507065,88.469,88.412,10.1875]
[1770559040752,55.84507065,88.469,88.411,56.28532055]
[1770559044643,55.84507065,88.466,88.384,56.28532055]
[1770559046360,55.84507065,88.486,88.416,56.28532055]
[1770559047049,55.84507065,88.486,88.419,56.28532055]
[1770559048857,55.84507065,88.486,88.421,56.28532055]
[1770559050157,55.84507065,88.483,88.421,56.28532055]
[1770559052458,55.84507065,88.481,88.421,56.28532055]
[1770559052758,55.84507065,88.479,88.421,56.28532055]
[1770559056263,55.84507065,88.477,88.421,56.28532055]
[1770559056554,55.84507065,88.475,88.421,56.28532055]
[1770559056749,55.84507065,88.473,88.421,56.28532055]
[1770559057262,55.84507065,88.473,88.409,10.1878]
[1770559057456,55.84507065,88.473,88.409,66.47312055]
[1770559058257,55.84507065,88.473,88.421,56.28532055]
[1770559059861,55.84507065,88.473,88.423,56.28532055]
[1770559060763,55.84507065,88.489,88.431,56.28532055]
[1770559060962,55.84507065,88.499,88.431,56.28532055]
[1770559061361,55.84507065,88.497,88.431,56.28532055]
[1770559061967,55.84507065,88.497,88.433,56.28532055]
[1770559062266,8.72883308,88.496,88.433,56.28532055]
[1770559062467,8.72883308,88.495,88.433,56.28532055]
[1770559062660,8.72883308,88.494,88.436,56.28532055]
[1770559062862,8.72883308,88.5,88.436,56.28532055]
[1770559063063,55.84507065,88.511,88.436,56.28532055]
[1770559063267,9.051345,88.5,88.446,56.28532055]
[1770559063466,55.84507065,88.511,88.446,56.28532055]
[1770559063666,9.051345,88.5,88.446,56.28532055]
[1770559063868,55.84507065,88.511,88.446,56.28532055]
[1770559064364,9.07950244,88.5,88.446,56.28532055]
[1770559064560,9.07950244,88.499,88.461,10.1818]
[1770559064763,9.07950244,88.498,88.462,56.28532055]
[1770559064963,66.36217337,88.525,88.462,56.28532055]
[1770559065167,49.94964668,88.523,88.462,56.28532055]
[1770559065357,49.94964668,88.521,88.462,56.28532055]
[1770559065562,59.02236294,88.52,88.462,56.28532055]
[1770559065762,9.07271626,88.519,88.465,49.64950815]
[1770559065967,9.07271626,88.518,88.465,49.64950815]